fUSD/lending_fUSD_20260515
["ID","MTS","AMOUNT","RATE_DAILY","PERIOD"]
[422280613,1778789793000,259.71,0.00014,120]
[422280631,1778789962000,-500.0,9.463e-05,2]
[422280629,1778789962000,-2961.55852493,9.453e-05,2]
[422280628,1778789962000,-2500.0,9.364e-05,2]
[422280630,1778789962000,-151.0,9.461e-05,2]
[422280627,1778789962000,-1298.545,9.364e-05,2]
[422280626,1778789962000,-191.04,9.335e-05,2]
[422280619,1778789962000,-250.0,9.204e-05,2]
[422280623,1778789962000,-2105.437,9.275e-05,2]
[422280632,1778789962000,-500.0,9.463e-05,2]
[422280622,1778789962000,-166.285,9.275e-05,2]
[422280620,1778789962000,-1095.0,9.227e-05,2]
[422280621,1778789962000,-250.0,9.25e-05,2]
[422280618,1778789962000,-2271.6,8.91e-05,2]
[422280617,1778789962000,-200.0,8.766e-05,2]
[422280625,1778789962000,-8698.601968,9.317e-05,2]
[422280634,1778789962000,-500.21402607,9.463e-05,2]
[422280624,1778789962000,-1360.71,9.295e-05,2]
[422280635,1778789962000,-500.0,9.463e-05,2]
[422280651,1778789962000,-500.0,9.463e-05,2]
[422280649,1778789962000,-500.0,9.463e-05,2]
[422280650,1778789962000,-500.0,9.463e-05,2]
[422280648,1778789962000,-500.0,9.463e-05,2]
[422280646,1778789962000,-500.0,9.463e-05,2]
[422280647,1778789962000,-500.0,9.463e-05,2]
[422280633,1778789962000,-500.0,9.463e-05,2]
[422280644,1778789962000,-500.0,9.463e-05,2]
[422280645,1778789962000,-500.0,9.463e-05,2]
[422280640,1778789962000,-563.09653131,9.463e-05,2]
[422280643,1778789962000,-368.97121202,9.463e-05,2]
[422280641,1778789962000,-500.0,9.463e-05,2]
[422280639,1778789962000,-500.0,9.463e-05,2]
[422280638,1778789962000,-500.0,9.463e-05,2]
[422280636,1778789962000,-500.0,9.463e-05,2]
[422280637,1778789962000,-500.0,9.463e-05,2]
[422280642,1778789962000,-320.2848707,9.463e-05,2]
[422280652,1778789963000,-500.0,9.463e-05,2]
[422280654,1778789963000,-500.0,9.463e-05,2]
[422280653,1778789963000,-500.0,9.463e-05,2]
[422280658,1778789963000,-500.0,9.463e-05,2]
[422280656,1778789963000,-500.0,9.463e-05,2]
[422280659,1778789963000,-362.65586697,9.463e-05,2]
[422280657,1778789963000,-500.0,9.463e-05,2]
[422280655,1778789963000,-500.0,9.463e-05,2]
[422280661,1778789967000,150.3,5.337e-05,2]
[422280660,1778789967000,150.3,4.869e-05,2]
[422280662,1778789968000,150.3,5.804e-05,2]
[422280663,1778789968000,150.3,6.272e-05,2]
[422280665,1778789968000,150.3,7.208e-05,2]
[422280666,1778789968000,150.3,7.675e-05,2]
[422280664,1778789968000,150.3,6.74e-05,2]
[422280667,1778789969000,150.3,8.143e-05,2]
[422280671,1778790395000,1671.72123722,0.00027397,120]
[422280672,1778790414000,152.0,0.00013726,7]
[422280673,1778790420000,202.76,0.000273,120]
[422280674,1778790425000,459.14799456,0.00027397,120]
[422280676,1778790533000,345.05,0.00023,120]
[422280675,1778790533000,444.62,0.000271,120]
[422280678,1778790533000,199.66,0.0002,120]
[422280677,1778790533000,294.02,0.00021,120]
[422280679,1778790535000,150.0,0.00014,120]
[422280680,1778790552000,-150.3,8.611e-05,2]
[422280681,1778790590000,-250.0,8.728e-05,2]
[422280688,1778790590000,-377.08457561,9.315e-05,2]
[422280689,1778790590000,-500.0,9.315e-05,2]
[422280686,1778790590000,-300.0,9.314e-05,2]
[422280685,1778790590000,-2000.0,9.106e-05,2]
[422280687,1778790590000,-500.0,9.315e-05,2]
[422280684,1778790590000,-150.3,9.079e-05,2]
[422280683,1778790590000,-200.96,9.059e-05,2]
[422280682,1778790590000,-680.35,8.99e-05,2]
[422280700,1778790591000,-500.0,9.315e-05,2]
[422280702,1778790591000,-500.0,9.315e-05,2]
[422280701,1778790591000,-500.0,9.315e-05,2]
[422280704,1778790591000,-500.0,9.315e-05,2]
[422280705,1778790591000,-500.0,9.315e-05,2]
[422280699,1778790591000,-500.0,9.315e-05,2]
[422280703,1778790591000,-500.0,9.315e-05,2]
[422280698,1778790591000,-500.0,9.315e-05,2]
[422280691,1778790591000,-255.4083504,9.315e-05,2]
[422280696,1778790591000,-202.25387452,9.315e-05,2]
[422280694,1778790591000,-500.0,9.315e-05,2]
[422280692,1778790591000,-500.0,9.315e-05,2]
[422280695,1778790591000,-229.23294792,9.315e-05,2]
[422280693,1778790591000,-362.24560373,9.315e-05,2]
[422280690,1778790591000,-500.0,9.315e-05,2]
[422280697,1778790591000,-207.663468,9.315e-05,2]
[422280708,1778790591000,-500.0,9.315e-05,2]
[422280710,1778790591000,-500.0,9.315e-05,2]
[422280707,1778790591000,-500.0,9.315e-05,2]
[422280725,1778790591000,-500.0,9.315e-05,2]
[422280724,1778790591000,-500.0,9.315e-05,2]
[422280723,1778790591000,-500.0,9.315e-05,2]
[422280722,1778790591000,-500.0,9.315e-05,2]
[422280720,1778790591000,-500.0,9.315e-05,2]
[422280706,1778790591000,-500.0,9.315e-05,2]
[422280718,1778790591000,-500.0,9.315e-05,2]
[422280719,1778790591000,-500.0,9.315e-05,2]
[422280721,1778790591000,-500.0,9.315e-05,2]
[422280716,1778790591000,-500.0,9.315e-05,2]
[422280715,1778790591000,-500.0,9.315e-05,2]
[422280713,1778790591000,-500.0,9.315e-05,2]
[422280714,1778790591000,-500.0,9.315e-05,2]
[422280712,1778790591000,-500.0,9.315e-05,2]
[422280711,1778790591000,-500.0,9.315e-05,2]
[422280709,1778790591000,-500.0,9.315e-05,2]
[422280717,1778790591000,-420.18986531,9.315e-05,2]
[422280734,1778790592000,-500.0,9.315e-05,2]
[422280738,1778790592000,-500.0,9.315e-05,2]
[422280739,1778790592000,-281.70878772,9.315e-05,2]
[422280737,1778790592000,-500.0,9.315e-05,2]
[422280735,1778790592000,-500.0,9.315e-05,2]
[422280736,1778790592000,-500.0,9.315e-05,2]
[422280733,1778790592000,-500.0,9.315e-05,2]
[422280742,1778790592000,-500.0,9.315e-05,2]
[422280731,1778790592000,-500.0,9.315e-05,2]
[422280730,1778790592000,-500.0,9.315e-05,2]
[422280728,1778790592000,-500.0,9.315e-05,2]
[422280729,1778790592000,-500.0,9.315e-05,2]
[422280727,1778790592000,-500.0,9.315e-05,2]
[422280726,1778790592000,-500.0,9.315e-05,2]
[422280732,1778790592000,-500.0,9.315e-05,2]
[422280741,1778790592000,-500.0,9.315e-05,2]
[422280755,1778790592000,-500.0,9.315e-05,2]
[422280743,1778790592000,-500.0,9.315e-05,2]
[422280740,1778790592000,-500.0,9.315e-05,2]
[422280759,1778790592000,-62382.60252679,9.316e-05,2]
[422280756,1778790592000,-500.0,9.315e-05,2]
[422280757,1778790592000,-500.0,9.315e-05,2]
[422280753,1778790592000,-500.0,9.315e-05,2]
[422280754,1778790592000,-500.0,9.315e-05,2]
[422280751,1778790592000,-500.0,9.315e-05,2]
[422280758,1778790592000,-200.0,9.315e-05,2]
[422280750,1778790592000,-500.0,9.315e-05,2]
[422280744,1778790592000,-500.0,9.315e-05,2]
[422280752,1778790592000,-500.0,9.315e-05,2]
[422280746,1778790592000,-500.0,9.315e-05,2]
[422280745,1778790592000,-500.0,9.315e-05,2]
[422280748,1778790592000,-500.0,9.315e-05,2]
[422280749,1778790592000,-500.0,9.315e-05,2]
[422280747,1778790592000,-500.0,9.315e-05,2]
[422280760,1778790605000,175.0,0.00026397,120]
[422280761,1778790607000,243.59855272,0.00027397,120]
[422280763,1778790619000,408.04936152,8.511e-05,2]
[422280762,1778790619000,91.95063848,8.511e-05,2]
[422280764,1778790624000,152.0,0.0001373,7]
[422280770,1778790631000,-4715.14,9.106e-05,2]
[422280771,1778790631000,-300.0,9.315e-05,2]
[422280775,1778790632000,-150.0,9.315e-05,2]
[422280772,1778790632000,-1200.0,9.315e-05,2]
[422280774,1778790632000,-300.0,9.315e-05,2]
[422280773,1778790632000,-300.0,9.315e-05,2]
[422280778,1778790632000,-4016.76444638,9.316e-05,2]
[422280777,1778790632000,-761.65659094,9.316e-05,2]
[422280780,1778790632000,-407.22934819,9.316e-05,2]
[422280776,1778790632000,-1945.01556809,9.316e-05,2]
[422280779,1778790632000,-1053.71656762,9.316e-05,2]
[422280781,1778790635000,500.0,0.0002726,120]
[422280789,1778790638000,-2022.36364376,9.106e-05,2]
[422280788,1778790638000,-436.36357001,9.106e-05,2]
[422280790,1778790638000,-405.59186081,9.106e-05,2]
[422280792,1778790638000,-535.24059262,9.106e-05,2]
[422280791,1778790638000,-4075.6403328,9.106e-05,2]
[422280794,1778790638000,-439.09232507,9.316e-05,2]
[422280796,1778790638000,-5903.718551,9.316e-05,2]
[422280797,1778790638000,-48829.746,9.316e-05,2]
[422280798,1778790638000,-8355.461751,9.316e-05,2]
[422280799,1778790638000,-36008.590824,9.316e-05,2]
[422280800,1778790638000,-1834439.00045379,9.316e-05,2]
[422280795,1778790638000,-745.15094287,9.316e-05,2]
[422280793,1778790638000,-2252.47004123,9.316e-05,2]
[422281089,1778790640000,-6.99105447,9.316e-05,2]
[422281033,1778790640000,-1916.97527295,9.316e-05,2]
[422281241,1778790646000,-463.2219125,9.269e-05,2]
[422281243,1778790646000,-231.20702632,9.269e-05,2]
[422281244,1778790646000,-1394.28297368,9.316e-05,2]
[422281242,1778790646000,-1201.41969618,9.269e-05,2]
[422281286,1778790672000,150.0,0.00011233,120]
[422281287,1778790727000,150.0,0.00014,120]
[422281288,1778790821000,235.1550939,0.0002739,120]
[422281290,1778790868000,152.71,8.573e-05,2]
[422281289,1778790868000,314.48614012,8.573e-05,2]
[422281291,1778790918000,150.0,0.00014,120]
[422281297,1778790998000,-153.51614012,8.701e-05,2]
[422281295,1778790998000,-500.0,8.615e-05,2]
[422281296,1778790998000,-150.0,8.66e-05,2]
[422281293,1778790998000,-3546.48385988,8.573e-05,2]
[422281294,1778790998000,-150.0,8.575e-05,2]
[422281292,1778790998000,-500.0,8.49e-05,2]
[422281298,1778791108000,150.0,0.00014,120]
[422281302,1778791131000,-150.0,8.745e-05,2]
[422281303,1778791131000,-150.0,8.83e-05,2]
[422281300,1778791131000,-1852.42,8.583e-05,2]
[422281301,1778791131000,-66.50305988,8.701e-05,2]
[422281299,1778791131000,-200.0,8.547e-05,2]
[422281304,1778791131000,-81.07694012,8.865e-05,2]
[422281305,1778791143000,558.0,0.0001116,5]
[422281306,1778791250000,1249.90529766,0.00027397,120]
[422281307,1778791298000,150.0,0.00014,120]
[422281309,1778791449000,179.8,0.00023,120]
[422281308,1778791449000,236.28,0.000271,120]
[422281310,1778791487000,150.0,0.00014,120]
[422281313,1778791527000,319.88,4.557e-05,2]
[422281312,1778791527000,319.88,4.337e-05,2]
[422281318,1778791528000,319.88,5.434e-05,2]
[422281317,1778791528000,319.88,5.215e-05,2]
[422281316,1778791528000,124.69281284,4.995e-05,2]
[422281315,1778791528000,195.18718716,4.995e-05,2]
[422281314,1778791528000,319.88,4.776e-05,2]
[422281320,1778791529000,319.88,5.873e-05,2]
[422281319,1778791529000,319.88,5.653e-05,2]
[422281322,1778791529000,319.88,6.311e-05,2]
[422281321,1778791529000,319.88,6.092e-05,2]
[422281327,1778791530000,319.88,7.408e-05,2]
[422281326,1778791530000,319.88,7.189e-05,2]
[422281325,1778791530000,319.88,6.97e-05,2]
[422281324,1778791530000,319.88,6.75e-05,2]
[422281323,1778791530000,319.88,6.531e-05,2]
[422281332,1778791531000,263.19562568,8.286e-05,2]
[422281331,1778791531000,56.68437432,8.286e-05,2]
[422281330,1778791531000,319.88,8.066e-05,2]
[422281329,1778791531000,319.88,7.847e-05,2]
[422281328,1778791531000,319.88,7.628e-05,2]
[422281333,1778791676000,150.0,0.00014,120]
[422281334,1778791747000,511.0,0.0001116,5]
[422281335,1778791764000,-340.17,8.451e-05,2]
[422281337,1778791764000,-36.6356265,8.505e-05,2]
[422281336,1778791764000,-200.0,8.486e-05,2]
[422281436,1778791832000,-1150.25,9.015e-05,2]
[422281365,1778791832000,-500.0,9.015e-05,2]
[422281366,1778791832000,-500.0,9.015e-05,2]
[422281362,1778791832000,-500.0,9.015e-05,2]
[422281359,1778791832000,-500.0,9.015e-05,2]
[422281360,1778791832000,-500.0,9.015e-05,2]
[422281361,1778791832000,-500.0,9.015e-05,2]
[422281367,1778791832000,-500.0,9.015e-05,2]
[422281368,1778791832000,-500.0,9.015e-05,2]
[422281370,1778791832000,-500.0,9.015e-05,2]
[422281378,1778791832000,-500.0,9.015e-05,2]
[422281369,1778791832000,-500.0,9.015e-05,2]
[422281371,1778791832000,-500.0,9.015e-05,2]
[422281373,1778791832000,-500.0,9.015e-05,2]
[422281375,1778791832000,-500.0,9.015e-05,2]
[422281374,1778791832000,-500.0,9.015e-05,2]
[422281372,1778791832000,-500.0,9.015e-05,2]
[422281364,1778791832000,-500.0,9.015e-05,2]
[422281376,1778791832000,-500.0,9.015e-05,2]
[422281363,1778791832000,-500.0,9.015e-05,2]
[422281354,1778791832000,-500.0,9.015e-05,2]
[422281339,1778791832000,-347.19452906,8.471e-05,2]
[422281338,1778791832000,-500.0,8.437e-05,2]
[422281340,1778791832000,-283.2443735,8.505e-05,2]
[422281341,1778791832000,-2000.0,8.633e-05,2]
[422281342,1778791832000,-1482.03,8.639e-05,2]
[422281344,1778791832000,-795.78858984,8.686e-05,2]
[422281345,1778791832000,-26773.0,8.791e-05,2]
[422281343,1778791832000,-1386.50141016,8.686e-05,2]
[422281346,1778791832000,-146.18305988,8.865e-05,2]
[422281348,1778791832000,-22322.41,9.006e-05,2]
[422281347,1778791832000,-420.0,9e-05,2]
[422281349,1778791832000,-9999.99,9.006e-05,2]
[422281350,1778791832000,-1200.0,9.014e-05,2]
[422281352,1778791832000,-186.44774474,9.015e-05,2]
[422281351,1778791832000,-157.0,9.014e-05,2]
[422281353,1778791832000,-450.0,9.015e-05,2]
[422281355,1778791832000,-500.0,9.015e-05,2]
[422281356,1778791832000,-500.0,9.015e-05,2]
[422281377,1778791832000,-500.0,9.015e-05,2]
[422281358,1778791832000,-182.41635527,9.015e-05,2]
[422281381,1778791832000,-500.0,9.015e-05,2]
[422281401,1778791832000,-500.0,9.015e-05,2]
[422281397,1778791832000,-500.0,9.015e-05,2]
[422281411,1778791832000,-500.0,9.015e-05,2]
[422281413,1778791832000,-500.0,9.015e-05,2]
[422281423,1778791832000,-500.0,9.015e-05,2]
[422281421,1778791832000,-500.0,9.015e-05,2]
[422281412,1778791832000,-500.0,9.015e-05,2]
[422281417,1778791832000,-500.0,9.015e-05,2]
[422281415,1778791832000,-500.0,9.015e-05,2]
[422281419,1778791832000,-500.0,9.015e-05,2]
[422281425,1778791832000,-150.94723928,9.015e-05,2]
[422281379,1778791832000,-500.0,9.015e-05,2]
[422281431,1778791832000,-299.99,9.015e-05,2]
[422281427,1778791832000,-9999.99,9.015e-05,2]
[422281433,1778791832000,-932.46,9.015e-05,2]
[422281442,1778791832000,-753.07092822,9.015e-05,2]
[422281437,1778791832000,-1859.09341033,9.015e-05,2]
[422281393,1778791832000,-500.0,9.015e-05,2]
[422281396,1778791832000,-500.0,9.015e-05,2]
[422281429,1778791832000,-150.99,9.015e-05,2]
[422281399,1778791832000,-500.0,9.015e-05,2]
[422281403,1778791832000,-500.0,9.015e-05,2]
[422281383,1778791832000,-500.0,9.015e-05,2]
[422281391,1778791832000,-500.0,9.015e-05,2]
[422281387,1778791832000,-500.0,9.015e-05,2]
[422281380,1778791832000,-500.0,9.015e-05,2]
[422281384,1778791832000,-500.0,9.015e-05,2]
[422281382,1778791832000,-500.0,9.015e-05,2]
[422281386,1778791832000,-500.0,9.015e-05,2]
[422281385,1778791832000,-500.0,9.015e-05,2]
[422281357,1778791832000,-339.17778355,9.015e-05,2]
[422281389,1778791832000,-500.0,9.015e-05,2]
[422281390,1778791832000,-500.0,9.015e-05,2]
[422281388,1778791832000,-500.0,9.015e-05,2]
[422281392,1778791832000,-500.0,9.015e-05,2]
[422281394,1778791832000,-500.0,9.015e-05,2]
[422281405,1778791832000,-500.0,9.015e-05,2]
[422281407,1778791832000,-500.0,9.015e-05,2]
[422281409,1778791832000,-500.0,9.015e-05,2]
[422281395,1778791832000,-500.0,9.015e-05,2]
[422281444,1778791833000,-265.84703492,9.015e-05,2]
[422281454,1778791838000,-580.29201335,9.015e-05,2]
[422281455,1778791838000,-652.48661318,9.015e-05,2]
[422281456,1778791838000,-547.9881,9.016e-05,2]
[422281457,1778791838000,-39379.47561937,9.016e-05,2]
[422281459,1778791838000,-291.21168786,9.016e-05,2]
[422281460,1778791838000,-1470.98733579,9.016e-05,2]
[422281461,1778791838000,-882.43336533,9.016e-05,2]
[422281458,1778791838000,-128657.62419475,9.016e-05,2]
[422281465,1778791839000,-6859.99277437,9.016e-05,2]
[422281469,1778791841000,-1322458.27502253,9.016e-05,2]
[422281470,1778791841000,-2396433.97271103,9.116e-05,2]
[422281479,1778791843000,-229.77449836,9.116e-05,2]
[422281480,1778791843000,-1082.55272606,9.116e-05,2]
[422281488,1778791863000,150.0,0.00014,120]
[422281489,1778792050000,150.0,0.00014,120]
[422281490,1778792185000,150.0,0.00027397,120]
[422281493,1778792355000,312.0,0.0001116,5]
[422281494,1778792451000,1148.91756599,0.00027397,120]
[422281495,1778792520000,290.04997742,0.0002,120]
[422281496,1778792607000,1352.19484797,0.00027397,120]
[422281497,1778792625000,157.07737624,0.000226,120]
[422281498,1778792678000,2026.38149272,0.0002739,120]
[422281500,1778792739000,193.03390383,0.0002,120]
[422281501,1778792745000,300.15905841,0.000271,120]
[422281502,1778792745000,805.117164,0.00027,120]
[422281503,1778792832000,888.0,0.00027397,120]
[422281504,1778792848000,888.0,0.00027397,120]
[422281505,1778792858000,888.0,0.00027397,120]
[422281506,1778792869000,888.0,0.00027397,120]
[422281507,1778792871000,630.22,0.00027397,120]
[422281508,1778792878000,888.0,0.00027397,120]
[422281509,1778792889000,888.0,0.00027397,120]
[422281510,1778792898000,888.0,0.00027397,120]
[422281511,1778792908000,888.0,0.00027397,120]
[422281512,1778792924000,888.0,0.00027397,120]
[422281513,1778792937000,888.0,0.00027397,120]
[422281514,1778792951000,888.0,0.00027397,120]
[422281515,1778792958000,252.0,0.0001116,5]
[422281529,1778793032000,-211.73211891,8.815e-05,2]
[422281530,1778793032000,-500.0,8.815e-05,2]
[422281525,1778793032000,-33171.8854,8.716e-05,2]
[422281528,1778793032000,-690.8,8.814e-05,2]
[422281527,1778793032000,-9999.99,8.814e-05,2]
[422281526,1778793032000,-150.0,8.814e-05,2]
[422281524,1778793032000,-1200.0,8.715e-05,2]
[422281520,1778793032000,-3009.32,8.626e-05,2]
[422281521,1778793032000,-166.284,8.64e-05,2]
[422281522,1778793032000,-2319.201,8.64e-05,2]
[422281531,1778793032000,-500.0,8.815e-05,2]
[422281516,1778793032000,-529.5993,8.533e-05,2]
[422281518,1778793032000,-500.0,8.551e-05,2]
[422281519,1778793032000,-150.0,8.618e-05,2]
[422281523,1778793032000,-300.0,8.715e-05,2]
[422281533,1778793032000,-452.42444848,8.815e-05,2]
[422281517,1778793032000,-250.0,8.542e-05,2]
[422281534,1778793032000,-500.0,8.815e-05,2]
[422281532,1778793032000,-263.95920293,8.815e-05,2]
[422281548,1778793032000,-102437.66613285,8.816e-05,2]
[422281549,1778793032000,-118900.29262785,8.816e-05,2]
[422281547,1778793032000,-167967.33371572,8.816e-05,2]
[422281546,1778793032000,-2014616.10387811,8.816e-05,2]
[422281545,1778793032000,-9999.99,8.815e-05,2]
[422281544,1778793032000,-8491.87,8.815e-05,2]
[422281543,1778793032000,-150.99,8.815e-05,2]
[422281539,1778793032000,-500.0,8.815e-05,2]
[422281537,1778793032000,-500.0,8.815e-05,2]
[422281538,1778793032000,-500.0,8.815e-05,2]
[422281542,1778793032000,-999.99,8.815e-05,2]
[422281541,1778793032000,-184.77144205,8.815e-05,2]
[422281535,1778793032000,-177.69144869,8.815e-05,2]
[422281536,1778793032000,-500.0,8.815e-05,2]
[422281540,1778793032000,-415.09472393,8.815e-05,2]
[422281571,1778793038000,-1593.2314,8.816e-05,2]
[422281567,1778793038000,-96078.60364547,8.816e-05,2]
[422281568,1778793038000,-2161.8558,8.816e-05,2]
[422281569,1778793038000,-507.7172,8.816e-05,2]
[422281572,1778793038000,-1043.18,8.853e-05,2]
[422281570,1778793038000,-2500.0,8.816e-05,2]
[422281575,1778793038000,-24799.59467504,8.916e-05,2]
[422281574,1778793038000,-271.68537938,8.916e-05,2]
[422281577,1778793038000,-4289.617565,8.932e-05,2]
[422281576,1778793038000,-500.0,8.932e-05,2]
[422281579,1778793038000,-1234.0,8.987e-05,2]
[422281578,1778793038000,-2000.0,8.966e-05,2]
[422281573,1778793038000,-1500000.0,8.916e-05,2]
[422281652,1778793039000,-1000.0,0.0001,2]
[422281654,1778793039000,-1000.0,0.0001,2]
[422281644,1778793039000,-1000.0,0.0001,2]
[422281646,1778793039000,-1000.0,0.0001,2]
[422281640,1778793039000,-500.0,9.726e-05,2]
[422281638,1778793039000,-255.0,9.695e-05,2]
[422281650,1778793039000,-1000.0,0.0001,2]
[422281648,1778793039000,-1000.0,0.0001,2]
[422281636,1778793039000,-151.0,9.589e-05,2]
[422281634,1778793039000,-151.0,9.589e-05,2]
[422281642,1778793039000,-3234.0,9.99e-05,2]
[422281659,1778793039000,-1000.0,0.0001,2]
[422281662,1778793039000,-1000.0,0.0001,2]
[422281656,1778793039000,-1000.0,0.0001,2]
[422281663,1778793039000,-1003.42621503,0.0001,2]
[422281665,1778793039000,-206.7641,0.0001,2]
[422281667,1778793039000,-206.76411,0.0001,2]
[422281669,1778793039000,-206.76411,0.0001,2]
[422281671,1778793039000,-206.7641,0.0001,2]
[422281673,1778793039000,-206.76411,0.0001,2]
[422281675,1778793039000,-206.7641,0.0001,2]
[422281677,1778793039000,-163.37,0.0001,2]
[422281682,1778793039000,-4532.0,0.0001023,2]
[422281632,1778793039000,-151.0,9.589e-05,2]
[422281681,1778793039000,-2000.0,0.00010086,2]
[422281658,1778793039000,-1000.0,0.0001,2]
[422281624,1778793039000,-164.50360177,9.418e-05,2]
[422281581,1778793039000,-213.60377363,9.023e-05,2]
[422281628,1778793039000,-1680.0,9.586e-05,2]
[422281678,1778793039000,-840.52075798,0.0001,2]
[422281586,1778793039000,-1202.77251,9.074e-05,2]
[422281580,1778793039000,-1432.42,8.997e-05,2]
[422281582,1778793039000,-1112.6064435,9.074e-05,2]
[422281584,1778793039000,-3478.9954559,9.074e-05,2]
[422281583,1778793039000,-607391.9796003,9.074e-05,2]
[422281585,1778793039000,-546.3288902,9.074e-05,2]
[422281588,1778793039000,-1202.77251,9.074e-05,2]
[422281591,1778793039000,-1202.77251,9.074e-05,2]
[422281593,1778793039000,-9829.3189242,9.074e-05,2]
[422281590,1778793039000,-1202.77251,9.074e-05,2]
[422281595,1778793039000,-922.330239,9.074e-05,2]
[422281630,1778793039000,-151.0,9.589e-05,2]
[422281609,1778793039000,-151.0,9.074e-05,2]
[422281598,1778793039000,-922.330239,9.074e-05,2]
[422281600,1778793039000,-922.330239,9.074e-05,2]
[422281604,1778793039000,-151.0,9.074e-05,2]
[422281605,1778793039000,-151.0,9.074e-05,2]
[422281602,1778793039000,-922.330239,9.074e-05,2]
[422281607,1778793039000,-151.0,9.074e-05,2]
[422281612,1778793039000,-166.85,9.131e-05,2]
[422281616,1778793039000,-500.0,9.37e-05,2]
[422281620,1778793039000,-300.0,9.386e-05,2]
[422281614,1778793039000,-150.0,9.216e-05,2]
[422281622,1778793039000,-250.0,9.386e-05,2]
[422281618,1778793039000,-250.0,9.386e-05,2]
[422281610,1778793039000,-155.566768,9.074e-05,2]
[422281680,1778793039000,-567.61,0.00010027,2]
[422281626,1778793039000,-448.03,9.464e-05,2]
[422281679,1778793039000,-840.52075798,0.0001,2]
[422281745,1778793039000,-669.79779163,0.00011098,2]
[422281747,1778793039000,-300.0,0.00011098,2]
[422281758,1778793039000,-7217.94967265,0.00011099,2]
[422281760,1778793039000,-7217.94967261,0.00011099,2]
[422281748,1778793039000,-710.50851315,0.00011099,2]
[422281756,1778793039000,-710.50851313,0.00011099,2]
[422281752,1778793039000,-710.50851313,0.00011099,2]
[422281750,1778793039000,-710.50851313,0.00011099,2]
[422281754,1778793039000,-710.50851313,0.00011099,2]
[422281764,1778793039000,-7217.94967261,0.00011099,2]
[422281762,1778793039000,-7217.94967261,0.00011099,2]
[422281765,1778793039000,-2000.0,0.00011207,2]
[422281804,1778793039000,-169.08,0.00012091,2]
[422281775,1778793039000,-4356.0,0.0001123,2]
[422281781,1778793039000,-710.50851313,0.00011589,2]
[422281779,1778793039000,-7217.94967261,0.00011361,2]
[422281783,1778793039000,-3292.0,0.000116,2]
[422281785,1778793039000,-736.0,0.00011731,2]
[422281798,1778793039000,-7217.94967261,0.00012022,2]
[422281787,1778793039000,-500.0,0.00011814,2]
[422281790,1778793039000,-271.68537937,0.00011858,2]
[422281796,1778793039000,-180.16156737,0.00012,2]
[422281794,1778793039000,-4289.617565,0.00011866,2]
[422281791,1778793039000,-24799.59467503,0.00011858,2]
[422281800,1778793039000,-3009.32,0.00012076,2]
[422281802,1778793039000,-500.0,0.00012088,2]
[422281777,1778793039000,-150.0,0.00011233,2]
[422281742,1778793039000,-681.41248099,0.00011098,2]
[422281684,1778793039000,-567.61,0.00010278,2]
[422281740,1778793039000,-300.0,0.00011098,2]
[422281686,1778793039000,-567.61,0.00010529,2]
[422281687,1778793039000,-2351.0,0.00010545,2]
[422281689,1778793039000,-2000.0,0.000106,2]
[422281691,1778793039000,-208.3309892,0.00010605,2]
[422281695,1778793039000,-250.0,0.00010642,2]
[422281693,1778793039000,-214.95940296,0.00010619,2]
[422281707,1778793039000,-150.0,0.00010959,2]
[422281738,1778793039000,-23236.90736322,0.0001105,2]
[422281709,1778793039000,-151.0,0.00010959,2]
[422281699,1778793039000,-121447.82924419,0.000107,2]
[422281701,1778793039000,-7991.90338994,0.000107,2]
[422281704,1778793039000,-150.0,0.00010959,2]
[422281703,1778793039000,-567.61,0.00010779,2]
[422281697,1778793039000,-433.0,0.00010665,2]
[422281715,1778793039000,-151.0,0.00010959,2]